lending/lending_fUSD_20250913
["ID","MTS","AMOUNT","RATE_DAILY","PERIOD"]
[385283558,1757743843522,-1000.0,0.00031781,2]
[385283561,1757743843538,-1000.0,0.00031781,2]
[385283563,1757743843554,-1000.0,0.00031781,2]
[385283566,1757743843568,-1000.0,0.00031781,2]
[385283568,1757743843584,-1000.0,0.00031781,2]
[385283571,1757743843599,-1000.0,0.00031781,2]
[385283574,1757743843614,-1000.0,0.00031781,2]
[385283576,1757743843629,-1000.0,0.00031781,2]
[385283579,1757743843644,-1000.0,0.00031781,2]
[385283581,1757743843659,-1000.0,0.00031781,2]
[385283584,1757743843675,-1000.0,0.00031781,2]
[385283586,1757743843690,-451.11979169,0.00031781,2]
[385283600,1757743843815,-82.7194618,0.00031781,2]
[385283603,1757743843833,-466.16074651,0.00031781,2]
[385283606,1757743843848,-1000.0,0.00031781,2]
[385283608,1757743843863,-1000.0,0.00031781,2]
[385283611,1757743843879,-1000.0,0.00031781,2]
[385283614,1757743843894,-1000.0,0.00031781,2]
[385283616,1757743843908,-1000.0,0.00031781,2]
[385283619,1757743843923,-1000.0,0.00031781,2]
[385283621,1757743843938,-1000.0,0.00031781,2]
[385283624,1757743843952,-1000.0,0.00031781,2]
[385283626,1757743843968,-1000.0,0.00031781,2]
[385283629,1757743843983,-1000.0,0.00031781,2]
[385283632,1757743843998,-1000.0,0.00031781,2]
[385283634,1757743844014,-1000.0,0.00031781,2]
[385283637,1757743844029,-1000.0,0.00031781,2]
[385283639,1757743844044,-1000.0,0.00031781,2]
[385283642,1757743844059,-1000.0,0.00031781,2]
[385283644,1757743844074,-1000.0,0.00031781,2]
[385283647,1757743844090,-1000.0,0.00031781,2]
[385283649,1757743844105,-1000.0,0.00031781,2]
[385283652,1757743844120,-1000.0,0.00031781,2]
[385283654,1757743844135,-1000.0,0.00031781,2]
[385283657,1757743844150,-1000.0,0.00031781,2]
[385283660,1757743844164,-1000.0,0.00031781,2]
[385283662,1757743844180,-1000.0,0.00031781,2]
[385283665,1757743844196,-1000.0,0.00031781,2]
[385283667,1757743844211,-1000.0,0.00031781,2]
[385283670,1757743844225,-1000.0,0.00031781,2]
[385283672,1757743844241,-1000.0,0.00031781,2]
[385283673,1757743844256,-1000.0,0.00031781,2]
[385283674,1757743844268,-1000.0,0.00031781,2]
[385283675,1757743844278,-1000.0,0.00031781,2]
[385283676,1757743844288,-1000.0,0.00031781,2]
[385283677,1757743844297,-1000.0,0.00031781,2]
[385283678,1757743844306,-1000.0,0.00031781,2]
[385283679,1757743844315,-1437.83946985,0.00031781,2]
[385283680,1757743844325,-150.0,0.00031781,2]
[385283681,1757743844334,-150.0,0.00031781,2]
[385283683,1757743844344,-500.0,0.00031781,2]
[385283685,1757743844354,-150.0,0.00031781,2]
[385283687,1757743844364,-400.0,0.00031799,2]
[385283726,1757743844715,-400.0,0.00031799,2]
[385283731,1757743844754,-277.94245212,0.00031799,2]
[385283735,1757743844776,-500.0,0.00031799,2]
[385283737,1757743844787,-1322.6,0.00031799,2]
[385283739,1757743844796,-902.11,0.00031799,2]
[385283741,1757743844805,-400.0,0.00031799,2]
[385283743,1757743844814,-400.0,0.00031799,2]
[385283745,1757743844824,-400.0,0.00031799,2]
[385283747,1757743844833,-884.2,0.00031799,2]
[385283749,1757743844842,-926.62,0.00031799,2]
[385283751,1757743844851,-705.29,0.00031799,2]
[385283753,1757743844860,-1145.72,0.00031799,2]
[385283754,1757743844869,-772.88,0.00031799,2]
[385283756,1757743844878,-400.0,0.00031799,2]
[385283758,1757743844888,-713.89,0.00031799,2]
[385283760,1757743844898,-400.0,0.00031799,2]
[385283762,1757743844907,-400.0,0.00031799,2]
[385283764,1757743844916,-944.86,0.00031799,2]
[385283766,1757743844925,-400.0,0.00031799,2]
[385283768,1757743844935,-746.64,0.00031799,2]
[385283770,1757743844944,-646.85,0.00031799,2]
[385283772,1757743844954,-796.68,0.00031799,2]
[385283774,1757743844963,-400.0,0.00031799,2]
[385283776,1757743844972,-1131.3,0.00031799,2]
[385283778,1757743844981,-408.23,0.00031799,2]
[385283780,1757743844990,-776.79,0.00031799,2]
[385283782,1757743844999,-400.0,0.00031799,2]
[385283784,1757743845010,-466.95,0.00031799,2]
[385283786,1757743845019,-693.76,0.00031799,2]
[385283788,1757743845027,-688.3,0.00031799,2]
[385283790,1757743845036,-788.15,0.00031799,2]
[385283792,1757743845045,-412.87,0.00031799,2]
[385283794,1757743845055,-681.12,0.00031799,2]
[385283796,1757743845064,-529.53455928,0.00031799,2]
[385283798,1757743845073,-746.45,0.00031799,2]
[385283800,1757743845082,-653.91,0.00031799,2]
[385283802,1757743845091,-400.0,0.00031799,2]
[385283804,1757743845100,-400.0,0.00031799,2]
[385283806,1757743845109,-589.9,0.00031799,2]
[385283808,1757743845118,-400.0,0.00031799,2]
[385283810,1757743845128,-550.7,0.00031799,2]
[385283812,1757743845137,-585.16,0.00031799,2]
[385283814,1757743845146,-750.77,0.00031799,2]
[385283816,1757743845156,-1259.7,0.00031799,2]
[385283818,1757743845166,-435.82,0.00031799,2]
[385283820,1757743845174,-798.33,0.00031799,2]
[385283822,1757743845183,-533.65,0.00031799,2]
[385283824,1757743845193,-760.57,0.00031799,2]
[385283826,1757743845202,-578.01,0.00031799,2]
[385283828,1757743845211,-552.5,0.00031799,2]
[385283830,1757743845220,-400.0,0.00031799,2]
[385283832,1757743845229,-846.19,0.00031799,2]
[385283834,1757743845239,-533.99,0.00031799,2]
[385283836,1757743845248,-500.1,0.00031799,2]
[385283838,1757743845257,-818.21,0.00031799,2]
[385283840,1757743845266,-798.57,0.00031799,2]
[385283842,1757743845275,-400.0,0.00031799,2]
[385283844,1757743845285,-656.9,0.00031799,2]
[385283846,1757743845295,-400.0,0.00031799,2]
[385283848,1757743845304,-400.0,0.00031799,2]
[385283850,1757743845313,-436.47,0.00031799,2]
[385283852,1757743845323,-997.99,0.00031799,2]
[385283854,1757743845332,-802.56,0.00031799,2]
[385283856,1757743845342,-400.0,0.00031799,2]
[385283858,1757743845352,-667.4,0.00031799,2]
[385283860,1757743845361,-706.71,0.00031799,2]
[385283862,1757743845371,-1022.55,0.00031799,2]
[385283864,1757743845380,-421.94,0.00031799,2]
[385283866,1757743845389,-400.0,0.00031799,2]
[385283867,1757743845398,-761.68,0.00031799,2]
[385283869,1757743845407,-679.14,0.00031799,2]
[385283872,1757743845417,-1264.01,0.00031799,2]
[385283873,1757743845426,-707.86,0.00031799,2]
[385283876,1757743845435,-718.55,0.00031799,2]
[385283878,1757743845445,-400.0,0.00031799,2]
[385283880,1757743845455,-668.48,0.00031799,2]
[385283882,1757743845466,-441.8,0.00031799,2]
[385283884,1757743845478,-400.0,0.00031799,2]
[385283886,1757743845488,-671.11,0.00031799,2]
[385283888,1757743845497,-863.16,0.00031799,2]
[385283890,1757743845507,-813.99,0.00031799,2]
[385283891,1757743845516,-159.14809467,0.00031799,2]
[385283893,1757743845526,-745.05,0.00031799,2]
[385283895,1757743845536,-845.28,0.00031799,2]
[385283897,1757743845546,-673.9,0.00031799,2]
[385283899,1757743845557,-726.61,0.00031799,2]
[385283901,1757743845567,-500.54,0.00031799,2]
[385283903,1757743845576,-774.45,0.00031799,2]
[385283905,1757743845586,-400.0,0.00031799,2]
[385283907,1757743845595,-400.0,0.00031799,2]
[385283909,1757743845604,-908.93,0.00031799,2]
[385283910,1757743845614,-800.67,0.00031799,2]
[385283911,1757743845623,-525.39,0.00031799,2]
[385283912,1757743845632,-600.0,0.000318,11]
[385283913,1757743845642,-9755.25338511,0.00031807,2]
[385283914,1757743845651,-258.772571,0.00031889,2]
[385283915,1757743845661,-258.77257095,0.00031891,2]
[385283916,1757743845670,-258.77257095,0.00031893,2]
[385283917,1757743845679,-258.77257095,0.00031895,2]
[385283919,1757743845688,-163.78314287,0.00031896,2]
[385283921,1757743845697,-258.77257095,0.00031896,2]
[385283923,1757743845707,-258.77257095,0.00031898,2]
[385283925,1757743845717,-3578.8016399,0.000319,2]
[385283927,1757743845726,-163.78314287,0.000319,2]
[385283929,1757743845735,-600.0,0.000319,11]
[385283931,1757743845744,-258.77257095,0.000319,2]
[385283933,1757743845753,-459.75892821,0.000319,2]
[385283935,1757743845762,-172.83625556,0.000319,6]
[385283937,1757743845772,-270.06,0.00031966,2]
[385283939,1757743845781,-150.0,0.00031967,2]
[385283941,1757743845790,-592.9445296,0.00031967,2]
[385283943,1757743845799,-1185.8890592,0.00031968,2]
[385283945,1757743845808,-889.4167944,0.00031968,2]
[385283947,1757743845819,-264.02643181,0.00031969,2]
[385283949,1757743845828,-336.50427583,0.00031972,2]
[385283951,1757743845837,-500.0,0.00031973,2]
[385283953,1757743845847,-500.0,0.00031973,5]
[385283955,1757743845856,-500.0,0.00031973,5]
[385283957,1757743845865,-3173.8021283,0.00031973,2]
[385283959,1757743845875,-408.98211986,0.00031974,2]
[385283961,1757743845884,-400.0,0.00031976,2]
[385283963,1757743845893,-400.0,0.00031976,2]
[385283965,1757743845903,-400.0,0.00031976,2]
[385283967,1757743845912,-400.0,0.00031976,2]
[385283969,1757743845921,-1000.0,0.00031976,2]
[385283971,1757743845930,-405.0063522,0.00031976,2]
[385283973,1757743845941,-400.0,0.00031976,2]
[385283975,1757743845950,-400.0,0.00031976,2]
[385283977,1757743845959,-400.0,0.00031976,2]
[385283979,1757743845968,-400.0,0.00031976,2]
[385283981,1757743845978,-400.0,0.00031976,2]
[385283983,1757743845987,-400.0,0.00031976,2]
[385283985,1757743845996,-400.0,0.00031976,2]
[385283987,1757743846005,-400.0,0.00031976,2]
[385283989,1757743846014,-400.0,0.00031976,2]
[385283991,1757743846023,-400.0,0.00031976,2]
[385283993,1757743846033,-400.0,0.00031976,2]
[385283995,1757743846043,-400.0,0.00031976,2]
[385283997,1757743846053,-400.0,0.00031976,2]
[385283999,1757743846063,-400.0,0.00031976,2]
[385284001,1757743846072,-400.0,0.00031976,2]
[385284003,1757743846081,-400.0,0.00031976,2]
[385284005,1757743846091,-400.0,0.00031976,2]
[385284007,1757743846101,-400.0,0.00031976,2]
[385284009,1757743846110,-400.0,0.00031976,2]
[385284011,1757743846120,-400.0,0.00031976,2]
[385284013,1757743846129,-400.0,0.00031976,2]
[385284015,1757743846138,-400.0,0.00031976,2]
[385284017,1757743846149,-400.0,0.00031976,2]
[385284019,1757743846159,-400.0,0.00031976,2]
[385284021,1757743846168,-400.0,0.00031976,2]
[385284023,1757743846177,-400.0,0.00031976,2]
[385284025,1757743846186,-400.0,0.00031976,2]
[385284027,1757743846196,-400.0,0.00031976,2]
[385284029,1757743846205,-400.0,0.00031976,2]
[385284031,1757743846214,-400.0,0.00031976,2]
[385284033,1757743846223,-400.0,0.00031976,2]
[385284035,1757743846234,-400.0,0.00031976,2]
[385284037,1757743846243,-400.0,0.00031976,2]
[385284039,1757743846252,-400.0,0.00031976,2]
[385284041,1757743846262,-400.0,0.00031976,2]
[385284043,1757743846271,-400.0,0.00031976,2]
[385284045,1757743846280,-400.0,0.00031976,2]
[385284047,1757743846289,-400.0,0.00031976,2]
[385284049,1757743846298,-400.0,0.00031976,2]
[385284051,1757743846307,-400.0,0.00031976,2]
[385284053,1757743846317,-400.0,0.00031976,2]
[385284055,1757743846326,-400.0,0.00031976,2]
[385284057,1757743846336,-400.0,0.00031976,2]
[385284059,1757743846345,-730.0,0.00031976,2]
[385284061,1757743846354,-843.88,0.00031976,2]
[385284063,1757743846364,-361.68162547,0.00031976,2]
[385284065,1757743846373,-400.0,0.00031976,2]
[385284067,1757743846383,-551.34,0.00031976,2]
[385284069,1757743846393,-1143.75,0.00031976,2]
[385284071,1757743846403,-212.60831933,0.00031976,2]
[385284073,1757743846412,-708.51,0.00031976,2]
[385284075,1757743846422,-400.0,0.00031976,2]
[385284077,1757743846432,-1785.19,0.00031976,2]
[385284079,1757743846442,-329.25004663,0.00031976,2]
[385284081,1757743846452,-300.55105089,0.00031976,2]
[385284083,1757743846463,-798.3,0.00031976,2]
[385284085,1757743846474,-400.0,0.00031976,2]
[385284086,1757743846487,-400.0,0.00031976,2]
[385284089,1757743846496,-403.03927517,0.00031976,2]
[385284091,1757743846506,-400.0,0.00031976,2]
[385284092,1757743846516,-400.0,0.00031976,2]
[385284096,1757743846526,-400.0,0.00031976,2]
[385284098,1757743846536,-1558.49,0.00031976,2]
[385284100,1757743846546,-1058.46,0.00031976,2]
[385284102,1757743846557,-400.0,0.00031976,2]
[385284104,1757743846566,-982.48,0.00031976,2]
[385284106,1757743846576,-892.99,0.00031976,2]
[385284108,1757743846585,-400.0,0.00031976,2]
[385284110,1757743846594,-400.0,0.00031976,2]
[385284112,1757743846604,-242.97674177,0.00031976,2]
[385284114,1757743846613,-2759.78,0.00031976,2]
[385284116,1757743846623,-407.41597883,0.00031976,2]
[385284118,1757743846632,-1179.25,0.00031976,2]
[385284120,1757743846641,-710.3,0.00031976,2]
[385284122,1757743846650,-744.68,0.00031976,2]
[385284124,1757743846660,-772.75,0.00031976,2]
[385284126,1757743846669,-400.0,0.00031976,2]
[385284128,1757743846679,-400.0,0.00031976,2]
[385284130,1757743846688,-400.0,0.00031976,2]
[385284132,1757743846697,-618.69,0.00031976,2]
[385284134,1757743846706,-446.34,0.00031976,2]
[385284136,1757743846716,-494.84,0.00031976,2]
[385284138,1757743846725,-559.17,0.00031976,2]
[385284140,1757743846734,-400.0,0.00031976,2]
[385284142,1757743846743,-801.79,0.00031976,2]
[385284144,1757743846752,-400.0,0.00031976,2]
[385284146,1757743846761,-9181.31,0.00031976,2]
[385284148,1757743846771,-400.0,0.00031976,2]
[385284150,1757743846781,-400.0,0.00031976,2]
[385284152,1757743846791,-719.87,0.00031976,2]
[385284154,1757743846800,-400.0,0.00031976,2]
[385284156,1757743846809,-400.0,0.00031976,2]
[385284158,1757743846819,-400.0,0.00031976,2]
[385284160,1757743846828,-400.0,0.00031976,2]
[385284162,1757743846837,-400.0,0.00031977,2]
[385284164,1757743846847,-400.0,0.00031977,2]
[385284165,1757743846855,-400.0,0.00031977,2]
[385284166,1757743846864,-400.0,0.00031977,2]
[385284167,1757743846873,-400.0,0.00031977,2]
[385284168,1757743846883,-400.0,0.00031977,2]
[385284169,1757743846892,-400.0,0.00031977,2]
[385284170,1757743846902,-400.0,0.00031977,2]
[385284171,1757743846911,-400.0,0.00031977,2]
[385284172,1757743846920,-400.54474415,0.00031977,2]
[385284174,1757743846929,-420.74194154,0.00031977,2]
[385284176,1757743846938,-400.0,0.00031977,2]
[385284178,1757743846947,-400.0,0.00031977,2]
[385284180,1757743846956,-400.0,0.00031977,2]
[385284182,1757743846966,-400.0,0.00031977,2]
[385284184,1757743846975,-400.0,0.00031977,2]
[385284186,1757743846984,-400.0,0.00031977,2]
[385284188,1757743846993,-400.0,0.00031977,2]
[385284190,1757743847002,-400.0,0.00031977,2]
[385284192,1757743847012,-400.0,0.00031977,2]
[385284194,1757743847022,-400.0,0.00031977,2]
[385284196,1757743847031,-400.0,0.00031977,2]
[385284198,1757743847040,-400.0,0.00031977,2]
[385284200,1757743847050,-400.0,0.00031977,2]
[385284202,1757743847060,-400.0,0.00031977,2]
[385284204,1757743847069,-400.0,0.00031977,2]
[385284206,1757743847078,-400.0,0.00031977,2]
[385284208,1757743847088,-400.0,0.00031977,2]
[385284210,1757743847097,-400.0,0.00031977,2]
[385284212,1757743847106,-400.0,0.00031977,2]
[385284214,1757743847116,-501.96889834,0.00031977,2]
[385284216,1757743847127,-400.0,0.00031977,2]
[385284218,1757743847136,-400.0,0.00031977,2]
[385284220,1757743847146,-400.0,0.00031977,2]
[385284222,1757743847155,-400.0,0.00031977,2]
[385284224,1757743847164,-400.0,0.00031977,2]
[385284226,1757743847173,-400.0,0.00031977,2]
[385284228,1757743847182,-400.0,0.00031977,2]
[385284230,1757743847191,-400.0,0.00031977,2]
[385284232,1757743847200,-438.33097006,0.00031977,2]
[385284234,1757743847209,-400.0,0.00031977,2]
[385284236,1757743847219,-548.79,0.00031977,2]
[385284238,1757743847228,-5103.631447,0.00031977,2]
[385284240,1757743847238,-169.770821,0.00031977,2]
[385284242,1757743847247,-150.866426,0.00031977,2]
[385284244,1757743847256,-3826.902992,0.00031977,2]
[385284247,1757743847266,-481.45996388,0.00031977,2]
[385284249,1757743847275,-4660.872615,0.00031977,2]
[385284251,1757743847285,-186.065547,0.00031977,2]
[385284253,1757743847294,-1062.09,0.00031977,2]
[385284255,1757743847304,-2191.53,0.00031977,2]
[385284257,1757743847313,-400.0,0.00031977,2]
[385284259,1757743847323,-955.68,0.00031977,2]
[385284261,1757743847332,-152.567897,0.00031977,7]
[385284263,1757743847341,-565.35,0.00031977,2]
[385284265,1757743847352,-1089.92,0.00031977,2]
[385284267,1757743847361,-627.36,0.00031977,2]
[385284269,1757743847370,-709.54,0.00031977,2]
[385284271,1757743847380,-612.0,0.00031977,2]
[385284273,1757743847390,-151.0,0.00031977,7]
[385284275,1757743847399,-643.67,0.00031977,2]
[385284277,1757743847410,-839.47,0.00031977,2]
[385284279,1757743847419,-833.08,0.00031977,2]
[385284281,1757743847430,-626.06,0.00031977,2]
[385284283,1757743847439,-151.0,0.00031977,7]
[385284285,1757743847448,-618.12,0.00031977,2]
[385284287,1757743847458,-623.59,0.00031977,2]
[385284289,1757743847472,-803.61,0.00031977,2]
[385284291,1757743847481,-691.6,0.00031977,2]
[385284293,1757743847491,-2069.64,0.00031977,2]
[385284295,1757743847500,-491.76446075,0.00031977,2]
[385284380,1757743848362,-2821.29556633,0.00031977,2]
[385284439,1757743849215,-771.7,0.00031976,2]
[385284441,1757743849225,-729.55,0.00031976,2]
[385284442,1757743849235,-71.54997292,0.00031977,2]
[385284444,1757743849245,-400.0,0.00031977,2]
[385284446,1757743849254,-692.67,0.00031977,2]
[385284447,1757743849264,-388.49096692,0.00031977,2]
[385284451,1757743849300,-410.68903308,0.00031977,2]
[385284452,1757743849309,-2127.08,0.00031977,2]
[385284454,1757743849319,-1197.8,0.00031977,2]
[385284456,1757743849328,-3701.14,0.00031977,2]
[385284457,1757743849337,-1916.91,0.00031977,2]
[385284459,1757743849347,-400.0,0.00031978,2]
[385284460,1757743849356,-400.0,0.00031978,2]
[385284462,1757743849366,-400.0,0.00031978,2]
[385284464,1757743849375,-400.0,0.00031978,2]
[385284465,1757743849384,-400.0,0.00031978,2]
[385284467,1757743849393,-400.0,0.00031978,2]
[385284469,1757743849403,-400.0,0.00031978,2]
[385284470,1757743849413,-400.0,0.00031978,2]
[385284472,1757743849423,-400.0,0.00031978,2]
[385284473,1757743849432,-400.0,0.00031978,2]
[385284474,1757743849442,-400.0,0.00031978,2]
[385284475,1757743849453,-401.52399914,0.00031978,2]
[385284476,1757743849462,-400.0,0.00031978,2]
[385284477,1757743849475,-403.55521566,0.00031978,2]
[385284478,1757743849484,-403.3627218,0.00031978,2]
[385284479,1757743849494,-400.0,0.00031978,2]
[385284480,1757743849503,-400.0,0.00031978,2]
[385284481,1757743849513,-400.0,0.00031978,2]
[385284482,1757743849523,-400.0,0.00031978,2]
[385284484,1757743849532,-400.0,0.00031978,2]
[385284485,1757743849541,-400.0,0.00031978,2]
[385284487,1757743849553,-400.0,0.00031978,2]
[385284489,1757743849563,-643.09,0.00031978,2]
[385284491,1757743849572,-511.37966847,0.00031978,2]
[385284493,1757743849581,-400.0,0.00031978,2]
[385284495,1757743849591,-283.95656185,0.00031978,2]
[385284507,1757743849700,-116.04343815,0.00031978,2]
[385284509,1757743849710,-324.14156255,0.00031978,2]
[385285179,1757744746688,3800.0,0.0001995,15]
[385285180,1757744753667,651.15335711,0.00015,10]
[385285182,1757744830127,-351.19033719,0.0001995,15]
[385285184,1757744953099,-4845.037288,0.0001995,15]
[385285185,1757744972096,-3403.89119305,0.0001995,15]
[385285186,1757744972117,-172.07220493,0.00020795,2]
[385285187,1757744972138,-733.210524,0.00020895,2]
[385285188,1757744972160,-500.0,0.00020998,2]
[385285189,1757744972183,-500.0,0.00020998,2]
[385285190,1757744972206,-500.0,0.00020998,2]
[385285191,1757744972230,-500.0,0.00020998,2]
[385285192,1757744972252,-500.0,0.00020998,2]
[385285193,1757744972275,-332.84850122,0.00020998,2]
[385285194,1757744972298,-500.0,0.00020998,2]
[385285195,1757744972321,-48.27841244,0.00020998,2]
[385285205,1757745032465,-451.72158756,0.00020998,2]
[385285206,1757745032475,-500.0,0.00020998,2]
[385285207,1757745032485,-1061.06309954,0.00021,2]
[385285208,1757745032496,-486.46563953,0.00021,2]
[385285209,1757745032516,-623.01201684,0.00021,2]
[385285233,1757745032861,-1216.90015568,0.00021,2]
[385285243,1757745032942,-1095.45660018,0.00021,2]
[385285259,1757745038292,-1483.02940606,0.00021,2]
[385285260,1757745038301,-1200.0,0.00023332,2]
[385285261,1757745038311,-4852.17902223,0.00023333,7]
[385285262,1757745038320,-175.8012221,0.00024625,2]
[385285263,1757745038330,-165.92,0.00024625,2]
[385285264,1757745038340,-500.0,0.00024799,2]
[385285265,1757745038349,-1000.0,0.000249,2]
[385285266,1757745038358,-1000.0,0.000249,2]
[385285268,1757745038368,-1000.0,0.000249,2]
[385285270,1757745038377,-442.564,0.000249,2]
[385285286,1757745038610,-200.0,0.000251,7]
[385285287,1757745038624,-332.0,0.00025436,2]
[385285288,1757745038633,-200.0,0.0002551,7]
[385285289,1757745038643,-200.0,0.0002591,7]
[385285290,1757745038652,-200.0,0.000261,7]
[385285291,1757745038663,-200.0,0.0002651,7]
[385285292,1757745038672,-266.65598847,0.00026708,2]
[385285293,1757745038681,-200.0,0.0002691,7]
[385285294,1757745038690,-200.0,0.000271,7]
[385285295,1757745038699,-1154.0,0.000273,5]
[385285296,1757745038708,-182.85,0.00027397,2]
[385285297,1757745038717,-161.07,0.00028578,2]
[385285298,1757745038726,-168.41,0.00028594,2]
[385285299,1757745038735,-44.02041057,0.00028694,3]
[385285300,1757745038750,-621.97958943,0.00028694,3]
[385285301,1757745038759,-172.29,0.00029118,2]
[385285302,1757745038768,-387.5250453,0.00029236,2]
[385285303,1757745038777,-250.0,0.00029379,2]
[385285304,1757745038787,-200.0,0.00029408,2]
[385285305,1757745038796,-232.74,0.0002944,2]
[385285306,1757745038805,-500.1,0.00030066,2]
[385285307,1757745038814,-4236.7037881,0.00030315,2]
[385285308,1757745038823,-703.0,0.000305,2]
[385285309,1757745038832,-150.0,0.00030807,7]
[385285310,1757745038841,-200.0,0.00030879,2]
[385285311,1757745038851,-163.1,0.00030911,30]
[385285312,1757745038860,-215.27,0.00030925,2]
[385285313,1757745038869,-418.95,0.00030944,2]
[385285314,1757745038878,-168.315,0.00031058,28]
[385285315,1757745038887,-172.29,0.00031059,2]
[385285316,1757745038896,-277.35679052,0.00031255,2]
[385285317,1757745038906,-292.45001572,0.00031255,2]
[385285318,1757745038916,-1209.69004181,0.000315,2]
[385285319,1757745038926,-165.0,0.000316,15]
[385285320,1757745038940,-1190.97,0.00031616,2]
[385285321,1757745038949,-1190.97,0.00031616,2]
[385285322,1757745038959,-1000.0,0.0003168,2]
[385285323,1757745038969,-689.0,0.0003168,2]
[385285324,1757745038979,-200.0,0.00031744,2]
[385285325,1757745038990,-180.72588312,0.0003176,2]
[385285326,1757745038999,-322.6107,0.00031761,2]
[385285327,1757745039009,-600.0,0.00031761,2]
[385285328,1757745039018,-500.0,0.00031761,2]
[385285329,1757745039027,-155.43642255,0.00031761,2]
[385285330,1757745039037,-721.12765535,0.00031761,2]
[385285331,1757745039048,-500.0,0.00031761,2]
[385285332,1757745039059,-875.59172607,0.00031761,2]
[385285333,1757745039068,-160.0,0.00031761,2]
[385285334,1757745039078,-500.0,0.00031761,2]
[385285335,1757745039087,-151.0,0.00031761,2]
[385285336,1757745039097,-500.0,0.00031761,2]
[385285337,1757745039106,-250.0,0.00031761,2]
[385285338,1757745039115,-1000.0,0.00031761,2]
[385285339,1757745039124,-151.0,0.00031761,2]
[385285340,1757745039133,-356.53241955,0.00031761,2]
[385285341,1757745039142,-1047.02275569,0.00031761,2]
[385285342,1757745039151,-250.0,0.00031761,2]
[385285343,1757745039160,-250.0,0.00031761,2]
[385285344,1757745039170,-250.0,0.00031761,2]
[385285345,1757745039178,-1000.0,0.00031761,2]
[385285346,1757745039188,-250.0,0.00031761,2]
[385285347,1757745039197,-279.66451568,0.00031761,2]
[385285348,1757745039206,-151.0,0.00031761,2]
[385285349,1757745039216,-1000.0,0.00031761,2]
[385285350,1757745039225,-250.0,0.00031761,2]
[385285351,1757745039235,-1000.0,0.00031761,2]
[385285352,1757745039244,-151.0,0.00031761,2]
[385285353,1757745039254,-250.0,0.00031761,2]
[385285354,1757745039264,-1000.0,0.00031761,2]
[385285355,1757745039273,-250.0,0.00031761,2]
[385285356,1757745039282,-151.0,0.00031761,2]
[385285357,1757745039294,-1000.0,0.00031761,2]
[385285358,1757745039304,-250.0,0.00031761,2]
[385285359,1757745039314,-151.0,0.00031761,2]
[385285360,1757745039324,-1000.0,0.00031761,2]
[385285361,1757745039334,-250.0,0.00031761,2]
[385285362,1757745039344,-151.0,0.00031761,2]
[385285363,1757745039352,-250.0,0.00031761,2]
[385285364,1757745039362,-270.66938694,0.00031761,2]
[385285365,1757745039371,-1000.0,0.00031761,2]
[385285366,1757745039380,-184.36139898,0.00031761,2]
[385285367,1757745039389,-1000.0,0.00031761,2]
[385285368,1757745039398,-768.41421781,0.00031761,2]
[385285369,1757745039407,-500.0,0.00031761,2]